bitfinex-derivatives/quotes_SOLF0:USTF0_20250625
["timestamp","ask_amount","ask_price","bid_price","bid_amount"]
[1750844665004,61.72,145.19,145.12,6.8873]
[1750844665199,5.68732507,145.17,145.09,2.3315]
[1750844665502,61.72,145.19,145.06,2.3088]
[1750844665704,5.68732507,145.14,145.06,2.3088]
[1750844665902,6.8868,145.13,145.06,2.3088]
[1750844666099,656.6,145.19,145.06,2.3088]
[1750844666290,5.68732507,145.1,145.06,2.3088]
[1750844666490,6.889,145.09,145.06,2.3088]
[1750844666801,5.68732507,145.1,145.06,2.3088]
[1750844667100,5.68732507,145.1,145.03,4.4377]
[1750844667301,6.8892,145.08,145.04,6.8906]
[1750844667505,6.8892,145.08,145.03,4.4377]
[1750844667803,6.8891,145.09,145.05,6.8903]
[1750844668098,5.68732507,145.1,145.03,2.2227]
[1750844668303,2.4302,145.12,145.03,2.2227]
[1750844668505,5.68732507,145.07,145.03,2.2227]
[1750844669207,5.68732507,145.07,145.0,2.4158]
[1750844669504,5.68732507,145.09,145.0,10.38782507]
[1750844670007,5.68732507,145.05,145.0,4.7005]
[1750844670200,3.827,145.12,145.0,4.7005]
[1750844670505,5.68732507,145.08,145.0,4.7005]
[1750844670703,3.827,145.12,145.0,4.7005]
[1750844670905,3.827,145.12,145.01,69.38732507]
[1750844671296,5.68732507,145.1,145.01,63.7]
[1750844671492,3.827,145.12,145.01,63.7]
[1750844671803,12.57642507,145.09,145.04,6.8907]
[1750844672403,5.68732507,145.09,145.01,63.7]
[1750844672602,2.4302,145.12,145.02,5.68732507]
[1750844672905,63.72,145.17,145.01,63.7]
[1750844673201,5.68732507,145.15,145.05,5.68732507]
[1750844673403,2.2326,145.16,145.06,4.7101]
[1750844673594,5.68732507,145.09,145.06,4.7101]
[1750844674493,12.57592507,145.1,145.06,4.7101]
[1750844674695,2.2326,145.16,145.07,6.8893]
[1750844674899,5.68732507,145.14,145.06,72.3701]
[1750844675103,5.68732507,145.14,145.06,78.05742507]
[1750844675403,6.8862,145.15,145.07,2.2379]
[1750844676006,6.8862,145.15,145.11,6.8877]
[1750844676205,12.57272507,145.16,145.08,5.68732507]
[1750844676610,5.68732507,145.16,145.11,6.8874]
[1750844676907,6.8861,145.15,145.11,6.8874]
[1750844677104,5.68732507,145.16,145.11,6.8874]
[1750844677404,5.68732507,145.14,145.06,72.3701]
[1750844677600,5.68732507,145.16,145.06,72.3701]
[1750844677805,5.68732507,145.16,145.07,8.08432507]
[1750844677996,5.68732507,145.16,145.07,2.397]
[1750844678711,5.68732507,145.16,145.08,5.68732507]
[1750844679002,5.68732507,145.19,145.1,5.68732507]
[1750844679203,6.8847,145.18,145.1,5.68732507]
[1750844679401,5.68732507,145.19,145.09,5.68732507]
[1750844679805,6.8846,145.18,145.14,6.8862]
[1750844680206,6.8846,145.18,145.09,5.68732507]
[1750844680506,6.8846,145.18,145.14,6.8861]
[1750844680710,12.57142507,145.19,145.11,5.68732507]
[1750844680903,12.57142507,145.19,145.12,4.6187]
[1750844681098,5.68732507,145.19,145.14,6.8863]
[1750844681307,6.8846,145.18,145.14,6.8863]
[1750844682203,6.8846,145.18,145.15,6.8858]
[1750844682412,2.4012,145.23,145.12,72.2587]
[1750844682611,5.68732507,145.22,145.13,5.68732507]
[1750844682909,595.12,145.26,145.15,5.68732507]
[1750844682910,5.68732507,145.24,145.15,5.68732507]
[1750844683407,6.8824,145.23,145.15,5.68732507]
[1750844683603,6.8824,145.23,145.13,2.2031]
[1750844683800,6.8824,145.23,145.2,6.8835]
[1750844684003,6.8824,145.23,145.15,5.68732507]
[1750844684510,6.8824,145.23,145.19,6.8837]
[1750844684695,5.68732507,145.22,145.13,7.89042507]
[1750844684897,5.68732507,145.22,145.16,6.8849]
[1750844685096,5.68732507,145.22,145.13,7.89042507]
[1750844685406,5.68732507,145.2,145.16,6.8852]
[1750844685910,6.8842,145.19,145.16,6.8852]
[1750844686311,5.68732507,145.2,145.17,6.8848]
[1750844686511,12.57102507,145.2,145.17,6.8848]
[1750844686709,5.68732507,145.2,145.13,2.2031]
[1750844687006,6.8842,145.19,145.16,6.8851]
[1750844687205,5.68732507,145.18,145.12,4.6187]
[1750844687604,12.57202507,145.18,145.15,6.8856]
[1750844687908,5.68732507,145.18,145.15,6.8856]
[1750844688111,5.68732507,145.18,145.12,4.6187]
[1750844689004,6.8851,145.17,145.14,6.8863]
[1750844689507,12.57202507,145.18,145.15,6.8858]
[1750844689708,5.68732507,145.18,145.12,4.6187]
[1750844690109,6.8847,145.18,145.12,4.6187]
[1750844690514,6.8847,145.18,145.15,6.8856]
[1750844690715,5.68732507,145.19,145.12,4.6187]
[1750844691011,5.68732507,145.21,145.18,6.8843]
[1750844691312,6.883,145.21,145.13,8.10102507]
[1750844691512,5.68732507,145.22,145.19,6.8837]
[1750844692110,71.40732507,145.25,145.2,6.8834]
[1750844692311,2.3962,145.28,145.16,65.72]
[1750844692509,5.68732507,145.25,145.16,65.72]
[1750844692704,5.68732507,145.25,145.15,5.68732507]
[1750844692705,6.8829,145.22,145.19,6.8839]
[1750844692915,5.68732507,145.21,145.13,2.4137]
[1750844693115,6.8835,145.2,145.13,2.4137]
[1750844693318,5.68732507,145.21,145.13,2.4137]
[1750844693512,5.68732507,145.23,145.13,8.10102507]
[1750844693815,5.68732507,145.23,145.19,6.8836]
[1750844694514,12.56972507,145.23,145.19,6.8836]
[1750844694717,5.68732507,145.23,145.19,6.8836]
[1750844695013,5.68732507,145.23,145.18,6.8842]
[1750844695218,5.68732507,145.23,145.13,8.10102507]
[1750844695620,6.8837,145.2,145.13,2.4137]
[1750844695923,5.68732507,145.21,145.13,2.4137]
[1750844696125,6.884,145.19,145.16,6.8849]
[1750844696317,5.68732507,145.2,145.13,2.4137]
[1750844696717,5.68732507,145.2,145.15,6.8856]
[1750844696718,6.8845,145.18,145.15,6.8856]
[1750844696914,12.57182507,145.18,145.15,6.8856]
[1750844697119,12.57182507,145.18,145.09,13.7774]
[1750844697120,5.68732507,145.18,145.1,4.4458]
[1750844697423,6.885,145.17,145.14,6.886]
[1750844697612,6.885,145.17,145.1,2.2283]
[1750844697922,5.68732507,145.18,145.14,6.8862]
[1750844698123,5.68732507,145.2,145.1,4.6543]
[1750844698317,6.8842,145.19,145.16,6.8851]
[1750844699123,6.8837,145.2,145.1,4.6543]
[1750844699318,6.8837,145.2,145.11,5.68732507]
[1750844699514,6.8837,145.2,145.16,6.8849]
[1750844699711,6.8837,145.2,145.11,5.68732507]
[1750844700723,6.8837,145.2,145.16,6.8849]
[1750844700923,5.68732507,145.21,145.11,5.68732507]
[1750844701221,5.68732507,145.19,145.15,6.8855]
[1750844701526,5.68732507,145.19,145.1,4.6543]
[1750844701719,5.68732507,145.19,145.15,6.8855]
[1750844702222,5.68732507,145.2,145.16,6.8851]
[1750844702827,6.884,145.19,145.16,6.8851]
[1750844703123,2.2224,145.22,145.1,10.34162507]
[1750844703422,5.68732507,145.2,145.1,10.34162507]
[1750844703922,2.2224,145.22,145.1,10.34162507]
[1750844704122,6.8842,145.19,145.16,6.8851]
[1750844704326,5.68732507,145.2,145.16,6.8851]
[1750844704520,5.68732507,145.2,145.1,10.34162507]
[1750844704718,6.8843,145.19,145.1,10.34162507]
[1750844705328,6.8843,145.19,145.16,6.8854]
[1750844705821,6.8845,145.18,145.16,6.8854]
[1750844706027,6.8845,145.18,145.15,6.8856]
[1750844706329,6.8845,145.18,145.1,10.34162507]
[1750844707427,6.8841,145.19,145.16,6.8854]
[1750844707927,12.57062507,145.21,145.12,5.68732507]
[1750844708133,61.88,145.27,145.16,5.68732507]
[1750844708426,3.41273077,145.24,145.17,10.29213077]
[1750844708629,6.8822,145.23,145.17,10.29213077]
[1750844709123,3.41273077,145.24,145.17,6.8794]
[1750844709317,3.41273077,145.2,145.17,2.4387]
[1750844709521,10.29653077,145.2,145.17,2.4387]
[1750844709726,3.41273077,145.2,145.14,2.2351]
[1750844710029,6.8842,145.19,145.16,6.8851]
[1750844710228,3.41273077,145.19,145.14,2.2351]
[1750844710431,3.41273077,145.22,145.14,2.2351]
[1750844710627,3.41273077,145.22,145.19,6.8837]
[1750844710930,10.29553077,145.22,145.19,6.8837]
[1750844711124,10.29553077,145.22,145.2,6.8834]
[1750844711320,10.29553077,145.22,145.15,3.41273077]
[1750844711321,3.41273077,145.24,145.17,3.41273077]
[1750844711525,61.88,145.27,145.18,2.3063]
[1750844711728,10.29463077,145.24,145.18,2.3063]
[1750844711923,3.41273077,145.23,145.18,2.3063]
[1750844712128,3.41273077,145.21,145.18,9.1904]
[1750844712326,5.69032134,145.22,145.18,9.1904]
[1750844712628,5.69032134,145.2,145.16,6.8851]
[1750844713037,6.8842,145.19,145.16,6.8851]
[1750844714436,12.57392134,145.2,145.14,2.2351]
[1750844714833,12.57392134,145.2,145.16,6.8851]
[1750844715134,6.884,145.19,145.14,2.2351]
[1750844715334,61.88,145.27,145.14,2.2351]
[1750844715537,5.69032134,145.21,145.14,2.2351]
[1750844715926,5.69032134,145.23,145.18,6.8841]
[1750844716326,12.57262134,145.23,145.15,5.69032134]
[1750844716530,5.69032134,145.23,145.15,5.69032134]
[1750844716733,6.8828,145.22,145.15,5.69032134]
[1750844716933,5.69032134,145.23,145.14,2.2351]
[1750844717429,5.69032134,145.24,145.19,6.8837]
[1750844717941,6.8828,145.22,145.19,6.8837]
[1750844718741,6.883,145.21,145.18,6.8842]
[1750844719040,5.69032134,145.22,145.14,2.2351]
[1750844719434,6.8835,145.2,145.14,2.2351]
[1750844719935,6.8835,145.2,145.18,6.8844]
[1750844720840,5.69032134,145.22,145.14,7.92542134]
[1750844721039,5.69032134,145.24,145.14,7.92542134]
[1750844721233,6.8825,145.23,145.19,6.8836]
[1750844722342,6.8825,145.23,145.2,6.8833]
[1750844722540,5.69032134,145.25,145.16,5.69032134]
[1750844722737,61.88,145.27,145.19,6.8839]
[1750844722935,61.88,145.27,145.14,7.92542134]
[1750844722936,6.8824,145.23,145.14,7.92542134]
[1750844723134,5.69032134,145.24,145.14,7.92542134]
[1750844723335,5.69032134,145.24,145.19,6.8837]
[1750844723540,6.8826,145.22,145.19,6.8837]
[1750844724341,6.8822,145.23,145.2,6.8834]
[1750844724543,5.69032134,145.24,145.14,7.92542134]
[1750844724936,6.8828,145.22,145.19,6.8837]
[1750844725546,6.8823,145.23,145.2,6.8834]
[1750844725745,5.69032134,145.24,145.14,7.92542134]
[1750844726246,6.8821,145.23,145.14,7.92542134]
[1750844726445,5.69032134,145.24,145.14,7.92542134]
[1750844726644,12.57202134,145.24,145.14,7.92542134]
[1750844726847,6.8817,145.24,145.14,7.92542134]
[1750844727646,6.8813,145.25,145.22,6.8821]
[1750844727849,67.57032134,145.27,145.16,5.69032134]
[1750844728048,67.57032134,145.27,145.17,2.292]
[1750844728344,6.8808,145.26,145.23,6.8818]
[1750844728942,6.8811,145.25,145.22,6.8823]
[1750844729842,6.8816,145.24,145.18,62.3043]
[1750844730047,5.69032134,145.25,145.18,62.3043]
[1750844730347,6.8819,145.24,145.21,6.8828]
[1750844730545,5.69032134,145.25,145.18,62.3043]
[1750844730744,67.57032134,145.27,145.18,62.3043]
[1750844730939,61.88,145.27,145.18,62.3043]
[1750844731139,67.57032134,145.27,145.18,67.99462134]
[1750844731346,60.02,145.31,145.18,67.99462134]
[1750844731544,6.8799,145.28,145.25,6.881]
[1750844731942,65.71032134,145.31,145.21,2.233]
[1750844732137,60.02,145.31,145.22,5.69032134]
[1750844732446,5.69032134,145.32,145.23,60.0]
[1750844732748,5.69032134,145.32,145.23,62.2635]
[1750844732948,5.69032134,145.32,145.24,2.3182]
[1750844733151,2.3654,145.34,145.24,2.3182]
[1750844733445,5.69032134,145.31,145.24,2.3182]
[1750844733642,2.3654,145.34,145.27,6.8799]
[1750844733844,5.69032134,145.34,145.24,2.3182]
[1750844734047,6.8776,145.33,145.29,6.8789]
[1750844734251,10.2865414,145.33,145.29,6.8789]
[1750844734441,3.4089414,145.33,145.25,3.4089414]
[1750844734641,6.878,145.32,145.25,3.4089414]
[1750844734937,10.2869414,145.32,145.24,5.7271414]
[1750844735250,10.2869414,145.32,145.28,6.8794]
[1750844735752,10.2869414,145.32,145.29,6.8792]
[1750844736254,10.2869414,145.32,145.24,5.7271414]
[1750844736753,10.2869414,145.32,145.29,6.8789]
[1750844736953,3.4089414,145.32,145.26,3.4089414]
[1750844737253,3.4089414,145.32,145.27,2.3941]
[1750844737444,60.0,145.35,145.27,2.3941]
[1750844737646,3.4089414,145.34,145.27,2.3941]
[1750844737947,3.4089414,145.34,145.31,6.8782]
[1750844738754,10.2860414,145.34,145.31,6.8782]
[1750844739250,66.8766,145.35,145.32,6.8777]
[1750844739551,70.2855414,145.35,145.32,6.8777]
[1750844739754,60.0,145.35,145.27,2.3941]
[1750844739953,3.4089414,145.36,145.28,3.4089414]
[1750844740153,3.4089414,145.36,145.29,2.2]
[1750844740349,10.2852414,145.36,145.29,2.2]
[1750844740552,10.2852414,145.36,145.3,2.4104]
[1750844740747,3.4089414,145.36,145.34,6.8768]
[1750844740948,3.4089414,145.36,145.3,2.4104]
[1750844741657,59.98,145.39,145.3,2.4104]
[1750844741859,3.4089414,145.37,145.34,6.8764]
[1750844742355,6.8762,145.36,145.33,6.8772]
[1750844743155,3.4089414,145.37,145.3,2.4104]
[1750844743548,3.4089414,145.37,145.3,5.8193414]
[1750844745152,59.98,145.39,145.3,5.8193414]
[1750844745357,63.3889414,145.39,145.3,5.8193414]
[1750844746158,59.98,145.39,145.3,5.8193414]
[1750844746357,63.3889414,145.39,145.3,5.8193414]
[1750844746961,6.8751,145.38,145.35,6.8761]
[1750844747359,10.2836414,145.39,145.36,6.8758]
[1750844747663,2.2405,145.41,145.36,6.8758]
[1750844747970,10.2831414,145.4,145.37,6.8753]
[1750844749861,6.8745,145.39,145.37,6.8753]
[1750844750354,84.12169573,145.49,145.36,3.4089414]
[1750844750549,3.4089414,145.45,145.38,3.4089414]
[1750844751054,6.8719,145.45,145.38,3.4089414]
[1750844751358,3.4089414,145.46,145.42,6.8728]
[1750844751562,6.8717,145.45,145.42,6.8728]
[1750844751859,3.4089414,145.46,145.41,6.8731]
[1750844752052,3.4089414,145.46,145.38,3.4089414]
[1750844752252,6.8716,145.45,145.38,3.4089414]
[1750844752453,6.8716,145.45,145.42,6.8727]
[1750844752960,3.4089414,145.46,145.38,3.4089414]
[1750844753165,60.3893,145.48,145.4,3.4089414]
[1750844753353,10.2798414,145.47,145.4,3.4089414]
[1750844753753,10.2798414,145.47,145.44,6.872]
[1750844753754,6.8709,145.47,145.44,6.872]
[1750844753954,6.8709,145.47,145.4,3.4089414]
[1750844754150,68.4393414,145.48,145.42,3.4089414]
[1750844754461,68.4393414,145.48,145.43,2.328]
[1750844757469,3.4089414,145.42,145.37,2.328]
[1750844757864,3.4089414,145.42,145.39,6.8742]
[1750844757865,10.2822414,145.42,145.39,6.8742]
[1750844758071,3.4089414,145.4,145.33,4.6428]
[1750844758271,10.2832414,145.4,145.37,6.8751]
[1750844758660,3.4089414,145.38,145.37,6.8751]
[1750844758861,3.4089414,145.38,145.33,4.5928]
[1750844759065,3.4089414,145.36,145.33,4.5928]
[1750844759571,3.4089414,145.36,145.35,6.8763]
[1750844760276,59.5282,145.43,145.34,6.8766]
[1750844760277,5.67889001,145.37,145.34,6.8766]
[1750844760469,5.67889001,145.37,145.33,2.3188]
[1750844760773,5.67889001,145.37,145.34,6.8766]
[1750844761582,5.67889001,145.37,145.35,6.8763]
[1750844761765,5.67889001,145.41,145.33,2.3188]
[1750844761969,6.8733,145.42,145.33,2.3188]
[1750844762378,6.8733,145.42,145.39,6.8742]
[1750844762680,6.8728,145.43,145.33,2.3188]
[1750844762975,5.67889001,145.43,145.33,2.3188]
[1750844763278,6.8733,145.42,145.38,6.8747]
[1750844764272,12.55219001,145.42,145.38,6.8747]
[1750844764574,5.67889001,145.42,145.39,6.8744]
[1750844764775,5.67889001,145.42,145.33,2.3188]
[1750844765074,5.67889001,145.42,145.34,5.67889001]
[1750844765278,5.67889001,145.42,145.39,6.8741]
[1750844765479,599.67889001,145.44,145.34,5.67889001]
[1750844765677,594.0,145.44,145.35,2.3749]
[1750844765979,6.8728,145.43,145.4,6.8738]
[1750844766678,5.67889001,145.42,145.35,2.3749]
[1750844766870,5.67889001,145.38,145.33,2.3188]
[1750844767273,5.67889001,145.39,145.33,2.3188]
[1750844767781,5.67889001,145.39,145.36,6.8756]
[1750844768073,6.8734,145.42,145.33,2.3188]
[1750844768373,5.67889001,145.4,145.33,2.3188]
[1750844768678,5.67889001,145.4,145.37,6.8751]
[1750844768881,5.67889001,145.4,145.33,2.3188]
[1750844769280,5.67889001,145.42,145.33,2.3188]
[1750844769781,5.67889001,145.42,145.39,6.8741]
[1750844770185,5.67889001,145.42,145.33,2.3188]
[1750844770784,5.67889001,145.42,145.4,6.8737]
[1750844771176,5.67889001,145.42,145.33,2.3188]
[1750844772185,5.67889001,145.42,145.41,6.8735]
[1750844774185,594.0,145.44,145.42,6.8728]
[1750844774382,5.67889001,145.43,145.42,6.8728]
[1750844775683,600.8722,145.44,145.42,6.8728]
[1750844775879,594.0,145.44,145.35,13.7526]
[1750844776080,5.67889001,145.42,145.35,13.7526]
[1750844776691,5.67889001,145.42,145.41,6.8735]
[1750844776986,5.67889001,145.42,145.35,13.7526]
[1750844777181,5.67889001,145.4,145.33,2.3188]
[1750844777379,5.67889001,145.4,145.38,6.8747]
[1750844778485,5.67889001,145.4,145.33,2.3188]
[1750844778486,5.67889001,145.4,145.37,6.8752]
[1750844778884,5.67889001,145.4,145.36,6.8757]
[1750844779081,5.67889001,145.38,145.36,6.8757]
[1750844779281,5.67889001,145.38,145.33,2.3188]
[1750844779477,12.55389001,145.38,145.35,6.8759]
[1750844780288,12.55389001,145.38,145.36,6.8758]
[1750844780987,5.67889001,145.38,145.36,6.8758]
[1750844781790,12.55409001,145.38,145.33,2.3188]
[1750844782186,5.67889001,145.36,145.3,4.6764]
[1750844782385,3.40776281,145.35,145.33,6.877]
[1750844783791,6.8774,145.33,145.28,2.2668]
[1750844783991,3.40776281,145.33,145.28,2.2668]
[1750844784592,6.8771,145.34,145.3,6.8783]
[1750844784891,3.40776281,145.33,145.28,2.2668]
[1750844785992,3.40776281,145.33,145.31,6.8782]
[1750844787189,10.28516281,145.33,145.3,6.8786]
[1750844787988,6.8779,145.32,145.29,6.879]
[1750844788194,3.40776281,145.31,145.28,2.2668]
[1750844788595,3.40776281,145.31,145.29,6.8789]
[1750844789198,3.40776281,145.31,145.28,2.2668]
[1750844789393,3.40776281,145.33,145.28,2.2668]
[1750844790397,10.28536281,145.33,145.28,2.2668]
[1750844790994,3.40776281,145.33,145.28,2.2668]
[1750844791690,64.5166,145.35,145.28,2.2668]
[1750844791994,67.92436281,145.35,145.28,2.2668]
[1750844792195,67.92436281,145.35,145.32,6.8775]
[1750844792590,6.8769,145.34,145.28,2.2668]
[1750844792898,3.40776281,145.33,145.28,2.2668]
[1750844793196,10.28536281,145.33,145.3,6.8786]
[1750844793792,6.8779,145.32,145.29,6.8789]
[1750844794096,3.40776281,145.31,145.29,6.8789]
[1750844794296,3.40776281,145.32,145.28,2.2668]
[1750844794898,3.40776281,145.32,145.31,6.8783]
[1750844795699,3.40776281,145.32,145.3,6.8785]
[1750844795899,3.40776281,145.32,145.28,2.2668]
[1750844796301,3.40776281,145.32,145.31,6.8783]
[1750844797902,3.40776281,145.33,145.31,6.8783]
[1750844798601,3.40776281,145.33,145.3,6.8785]
[1750844798802,10.28526281,145.33,145.28,2.2668]
[1750844799002,3.40776281,145.31,145.28,2.2668]
[1750844799705,3.40776281,145.31,145.29,6.8792]
[1750844799903,3.40776281,145.32,145.28,2.2668]
[1750844800304,3.40776281,145.32,145.3,6.8784]
[1750844800505,3.40776281,145.34,145.28,2.2668]
[1750844800809,3.40776281,145.34,145.32,6.8775]
[1750844801404,10.28466281,145.34,145.31,6.878]
[1750844801805,3.40776281,145.33,145.31,6.878]
[1750844802003,3.40776281,145.33,145.28,2.2668]
[1750844802507,3.40776281,145.33,145.31,6.878]
[1750844802704,10.28526281,145.33,145.28,2.2668]
[1750844803796,10.28526281,145.33,145.29,6.879]
[1750844803996,10.28526281,145.33,145.28,2.2668]
[1750844804196,3.40776281,145.33,145.28,2.2668]
[1750844804402,57.64,145.35,145.29,3.40776281]
[1750844805409,57.64,145.35,145.32,6.8774]
[1750844805810,57.64,145.35,145.29,3.40776281]
[1750844806310,3.40776281,145.38,145.29,3.40776281]
[1750844806516,3.40776281,145.4,145.33,3.40776281]
[1750844806812,3.40776281,145.4,145.37,6.8752]
[1750844807011,3.40776281,145.4,145.34,4.7039]
[1750844807403,57.66,145.41,145.34,4.7039]
[1750844807809,3.40776281,145.42,145.35,3.40776281]
[1750844809012,3.40776281,145.42,145.39,6.8742]
[1750844809203,3.40776281,145.42,145.35,3.40776281]
[1750844809609,3.40776281,145.42,145.38,6.8747]
[1750844809909,10.28116281,145.42,145.38,6.8747]
[1750844811109,10.28116281,145.42,145.39,6.8744]
[1750844811504,3.40776281,145.42,145.35,3.40776281]
[1750844811706,3.40776281,145.42,145.38,6.8746]
[1750844811905,3.40776281,145.42,145.35,3.40776281]
[1750844812205,10.28106281,145.42,145.38,6.8745]
[1750844813509,10.28106281,145.42,145.39,6.8745]
[1750844813712,6.8736,145.41,145.39,6.8745]
[1750844814413,6.8736,145.41,145.38,6.8748]
[1750844814712,10.28186281,145.4,145.34,4.7039]
[1750844815007,10.28186281,145.4,145.37,6.875]
[1750844815312,3.40776281,145.4,145.37,6.875]
[1750844815509,3.40776281,145.4,145.34,4.7039]
[1750844816313,10.28196281,145.4,145.37,6.8751]
[1750844816814,6.8748,145.39,145.34,4.7039]
[1750844817312,10.28206281,145.4,145.37,6.8751]
[1750844817812,10.28206281,145.4,145.34,4.7039]
[1750844818405,10.28206281,145.4,145.37,6.8752]
[1750844819412,6.8745,145.39,145.37,6.8752]
[1750844820614,3.40776281,145.4,145.38,6.8749]
[1750844821116,10.28156281,145.41,145.38,6.8749]
[1750844821323,3.40776281,145.41,145.35,3.40776281]
[1750844821516,594.0,145.44,145.35,3.40776281]
[1750844821818,6.8726,145.43,145.36,2.3769]
[1750844822213,3.40776281,145.44,145.36,59.1969]
[1750844822519,64.5318,145.45,145.42,6.8728]
[1750844822910,57.66,145.45,145.43,6.8725]
[1750844823111,3.40776281,145.46,145.39,3.40776281]
[1750844823314,3.40776281,145.46,145.4,4.7234]
[1750844823507,10.27896281,145.46,145.4,4.7234]
[1750844823819,3.40776281,145.46,145.4,4.7234]
[1750844824020,6.8721,145.44,145.41,6.8733]
[1750844824221,3.40776281,145.44,145.4,4.7234]
[1750844824619,10.28026281,145.44,145.4,4.7234]
[1750844824815,3.40776281,145.44,145.4,4.7234]
[1750844825718,3.40776281,145.44,145.4,2.3889]
[1750844826319,6.873,145.43,145.4,9.2627]
[1750844826520,3.40776281,145.44,145.4,9.2627]
[1750844826921,6.8728,145.43,145.4,9.2627]
[1750844827219,3.40776281,145.44,145.4,9.2627]
[1750844827624,6.8727,145.43,145.4,9.2627]
[1750844827823,6.8727,145.43,145.41,6.8735]
[1750844828622,3.40776281,145.44,145.42,6.8731]
[1750844828623,6.8723,145.44,145.42,6.8731]
[1750844828924,6.8723,145.44,145.4,2.3889]
[1750844829122,6.8723,145.44,145.41,6.8733]
[1750844830527,6.8727,145.43,145.41,6.8733]
[1750844831426,3.40776281,145.44,145.4,9.2626]
[1750844831628,3.40776281,145.44,145.37,5.80016281]
[1750844831629,3.40776281,145.42,145.37,2.3924]
[1750844832125,3.40776281,145.42,145.38,6.8747]
[1750844832325,3.40776281,145.42,145.37,2.3924]
[1750844832825,6.8739,145.41,145.37,2.3924]
[1750844833526,6.8739,145.41,145.39,6.8742]
[1750844834027,10.28106281,145.42,145.39,6.8742]
[1750844834230,10.28106281,145.42,145.37,2.3924]
[1750844835030,3.40776281,145.42,145.37,2.3924]
[1750844835626,3.40776281,145.38,145.35,2.2629]
[1750844836023,60.20776281,145.42,145.35,2.2629]
[1750844836425,3.40776281,145.38,145.35,2.2629]
[1750844836729,3.40776281,145.36,145.29,56.8]
[1750844836930,56.8,145.42,145.29,56.8]
[1750844836931,3.40776281,145.34,145.29,56.8]
[1750844837127,10.28486281,145.34,145.31,6.878]
[1750844837827,3.40776281,145.34,145.28,6.7946]
[1750844838033,3.40776281,145.3,145.22,56.82]
[1750844838232,3.40776281,145.3,145.23,4.5912]
[1750844839030,6.8792,145.29,145.23,4.5912]
[1750844839339,3.40776281,145.3,145.23,4.5912]
[1750844839533,10.28666281,145.3,145.26,6.8803]
[1750844839731,56.82,145.34,145.23,7.99896281]
[1750844839927,3.40776281,145.31,145.23,10.31906281]
[1750844840129,3.40776281,145.31,145.28,6.8794]
[1750844840638,56.82,145.34,145.28,6.8794]
[1750844840842,3.40776281,145.29,145.23,6.9113]
[1750844841036,3.40776281,145.26,145.23,6.9113]
[1750844841539,3.40776281,145.26,145.25,6.8809]
[1750844842039,3.40776281,145.28,145.23,6.9113]
[1750844842839,3.40776281,145.28,145.26,6.8806]
[1750844843837,56.82,145.34,145.26,6.8806]
[1750844844043,3.40776281,145.28,145.26,6.8806]
[1750844844634,56.82,145.34,145.29,6.8791]
[1750844844839,3.40776281,145.33,145.25,3.40776281]
[1750844845040,10.28536281,145.33,145.25,3.40776281]
[1750844845243,3.40776281,145.33,145.25,3.40776281]
[1750844845538,6.878,145.32,145.25,3.40776281]
[1750844845743,3.40776281,145.31,145.23,10.31906281]
[1750844846042,3.40776281,145.29,145.23,10.31906281]
[1750844846644,3.40776281,145.29,145.23,6.9113]
[1750844846943,3.40776281,145.27,145.23,6.9113]
[1750844847246,3.40776281,145.27,145.24,6.8813]
[1750844847646,3.40776281,145.27,145.23,6.9113]
[1750844847848,3.40776281,145.27,145.25,6.8808]
[1750844848048,3.40776281,145.29,145.23,6.9113]
[1750844848343,12.56059531,145.32,145.28,6.8794]
[1750844848541,12.56059531,145.32,145.23,12.59379531]
[1750844849148,12.56059531,145.32,145.28,6.8794]
[1750844849744,12.56059531,145.32,145.23,12.59379531]
[1750844849745,56.82,145.34,145.24,55.84]
[1750844849944,62.50249531,145.34,145.25,5.68249531]
[1750844850247,69.37959531,145.34,145.3,6.8785]
[1750844850442,63.6971,145.34,145.3,6.8785]
[1750844850642,56.82,145.34,145.3,6.8785]
[1750844850844,63.6972,145.34,145.3,6.8785]
[1750844851044,56.82,145.34,145.3,6.8785]
[1750844851651,6.8773,145.33,145.3,6.8785]